bitfinex/quotes_BTCUSD_20250604
["timestamp","ask_amount","ask_price","bid_price","bid_amount"]
[1748999407591,0.04573104,105610.0,105600.0,1.81901819]
[1748999409155,0.04573104,105610.0,105600.0,1.4245859]
[1748999409386,0.04573104,105610.0,105600.0,1.81901819]
[1748999410942,0.04573104,105610.0,105600.0,1.84915079]
[1748999412227,0.04573104,105610.0,105600.0,1.4547185]
[1748999412446,0.04573104,105610.0,105600.0,1.84915079]
[1748999412582,0.02798566,105610.0,105600.0,1.84915079]
[1748999414891,0.02798566,105610.0,105600.0,1.84763079]
[1748999416578,0.02798566,105610.0,105600.0,2.18763079]
[1748999419621,0.02798566,105610.0,105600.0,2.46007079]
[1748999421794,0.02798566,105610.0,105600.0,0.2938543]
[1748999422014,0.05938566,105610.0,105600.0,0.9148543]
[1748999422257,0.05938566,105610.0,105600.0,1.2250543]
[1748999422867,0.05938566,105610.0,105600.0,0.9118543]
[1748999423282,0.05938566,105610.0,105600.0,1.2219343]
[1748999431687,0.02798566,105610.0,105600.0,1.2219343]
[1748999434686,0.04358566,105610.0,105600.0,1.2202143]
[1748999434909,0.05968566,105610.0,105600.0,1.2202943]
[1748999437217,0.05968566,105610.0,105600.0,0.8084943]
[1748999437472,0.05968566,105610.0,105600.0,1.2199743]
[1748999443250,0.05968566,105610.0,105600.0,1.2188143]
[1748999445867,0.05968566,105610.0,105600.0,1.2182943]
[1748999446307,0.05968566,105610.0,105600.0,1.1732943]
[1748999446517,0.05968566,105610.0,105600.0,1.2182943]
[1748999446731,0.05968566,105610.0,105600.0,1.1732943]
[1748999446948,0.05968566,105610.0,105600.0,1.2182943]
[1748999447374,0.05968566,105610.0,105600.0,1.1732943]
[1748999447567,0.05968566,105610.0,105600.0,1.2182943]
[1748999448040,0.05968566,105610.0,105600.0,0.9086943]
[1748999448250,0.05968566,105610.0,105600.0,1.1728943]
[1748999448440,0.05968566,105610.0,105600.0,1.2178943]
[1748999449117,0.05968566,105610.0,105600.0,1.1728943]
[1748999449582,0.05968566,105610.0,105600.0,1.2178943]
[1748999450225,0.05968566,105610.0,105600.0,1.1728943]
[1748999450431,0.05968566,105610.0,105600.0,1.2178943]
[1748999450658,0.05968566,105610.0,105600.0,1.1728943]
[1748999450866,0.05968566,105610.0,105600.0,1.2178943]
[1748999451715,0.05968566,105610.0,105600.0,1.2171743]
[1748999451917,0.05968566,105610.0,105600.0,1.1721743]
[1748999452142,0.05968566,105610.0,105600.0,0.8084943]
[1748999452346,0.05968566,105610.0,105600.0,0.8636943]
[1748999452560,0.05968566,105610.0,105600.0,1.1720143]
[1748999453197,0.05968566,105610.0,105600.0,1.18083847]
[1748999453817,0.05968566,105610.0,105600.0,1.18067847]
[1748999454039,0.05968566,105610.0,105600.0,1.18063847]
[1748999455084,0.05968566,105610.0,105600.0,0.87251847]
[1748999455529,0.05968566,105610.0,105600.0,1.18039847]
[1748999455752,0.08851575,105610.0,105600.0,1.18039847]
[1748999456647,0.08851575,105610.0,105600.0,0.87255469]
[1748999456852,0.08851575,105610.0,105600.0,1.18023469]
[1748999458119,0.08851575,105610.0,105600.0,1.17887469]
[1748999459400,0.08635575,105610.0,105600.0,1.17887469]
[1748999460635,0.08635575,105610.0,105600.0,1.17886365]
[1748999462707,0.08635575,105610.0,105600.0,0.87138365]
[1748999462910,0.08635575,105610.0,105600.0,1.17794365]
[1748999463102,0.08635575,105610.0,105600.0,1.17797022]
[1748999464197,0.08635575,105610.0,105600.0,1.17796985]
[1748999467064,0.08635575,105610.0,105600.0,1.17797045]
[1748999470895,0.08635575,105610.0,105600.0,1.1690943]
[1748999471106,0.08635575,105610.0,105600.0,1.1779671]
[1748999472653,0.05465575,105610.0,105600.0,1.1779671]
[1748999475012,0.02582566,105610.0,105600.0,1.17793579]
[1748999475240,0.02582566,105610.0,105600.0,1.25463579]
[1748999486382,0.02582566,105610.0,105600.0,1.2457943]
[1748999486606,0.02582566,105610.0,105600.0,1.25461061]
[1748999490341,0.02582566,105610.0,105600.0,1.25460411]
[1748999491251,0.02582566,105610.0,105600.0,1.6490364]
[1748999492912,0.02582566,105610.0,105600.0,1.25460411]
[1748999494386,0.02582566,105610.0,105600.0,1.25457847]
[1748999495098,0.02582566,105610.0,105600.0,1.98901076]
[1748999496419,0.02582566,105610.0,105600.0,1.99201076]
[1748999499480,0.02582566,105610.0,105600.0,2.39201076]
[1748999499933,0.02582566,105610.0,105600.0,2.38973076]
[1748999500811,0.02582566,105610.0,105600.0,2.04973076]
[1748999501230,0.02582566,105610.0,105600.0,1.64641076]
[1748999501503,0.02582566,105610.0,105600.0,2.04889076]
[1748999501718,0.02582566,105610.0,105600.0,2.01719076]
[1748999505318,0.02582566,105610.0,105600.0,2.01682886]
[1748999505741,0.02582566,105610.0,105600.0,1.62275847]
[1748999505960,0.02582566,105610.0,105600.0,2.00804469]
[1748999506173,0.02582566,105610.0,105600.0,2.01679387]
[1748999506624,0.02582566,105610.0,105600.0,2.01615387]
[1748999508199,0.02582566,105610.0,105600.0,1.62208348]
[1748999508447,0.02582566,105610.0,105600.0,2.01615387]
[1748999510024,0.02582566,105610.0,105600.0,2.41022426]
[1748999510954,0.02582566,105610.0,105600.0,2.01615387]
[1748999511988,0.02582566,105610.0,105600.0,2.41022426]
[1748999513848,0.02582566,105610.0,105600.0,2.41022405]
[1748999514094,0.02582566,105610.0,105600.0,1.62208327]
[1748999514354,0.02582566,105610.0,105600.0,2.41022405]
[1748999514756,0.02582566,105610.0,105600.0,2.01615366]
[1748999515583,0.00076676,105610.0,105600.0,2.04628626]
[1748999516432,0.00076676,105610.0,105600.0,2.00740469]
[1748999516886,0.00076676,105610.0,105600.0,2.03753729]
[1748999517939,0.00076676,105610.0,105600.0,1.6434669]
[1748999518155,0.00076676,105610.0,105600.0,2.03601729]
[1748999518368,0.00076676,105610.0,105600.0,1.6420269]
[1748999518574,0.00076676,105610.0,105600.0,1.2420269]
[1748999518985,0.00076676,105610.0,105600.0,1.6118943]
[1748999519193,0.00076676,105610.0,105600.0,2.00364469]
[1748999519688,0.00076676,105610.0,105600.0,2.03377729]
[1748999520319,0.00076676,105610.0,105600.0,2.00364469]
[1748999520778,0.00076676,105610.0,105600.0,2.03377729]
[1748999521398,0.00076676,105610.0,105600.0,1.6397069]
[1748999521603,0.00076676,105610.0,105600.0,2.03377729]
[1748999522041,0.00076676,105610.0,105600.0,2.37377729]
[1748999522455,0.00076676,105610.0,105600.0,1.9797069]
[1748999522657,0.00076676,105610.0,105600.0,2.37377729]
[1748999524061,0.00020676,105610.0,105600.0,2.37377729]
[1748999525141,0.00020676,105610.0,105600.0,2.76784768]
[1748999528656,0.00020676,105610.0,105600.0,2.78314768]
[1748999528880,0.00020676,105610.0,105600.0,2.79814768]
[1748999529623,0.00020676,105610.0,105600.0,2.81268853]
[1748999531200,0.00020676,105610.0,105600.0,2.78255593]
[1748999533425,0.00020676,105610.0,105600.0,1.99441515]
[1748999533694,0.00020676,105610.0,105600.0,2.81262927]
[1748999534890,0.00020676,105610.0,105600.0,3.29912927]
[1748999537585,0.00020676,105610.0,105600.0,3.26905593]
[1748999544787,0.00020676,105610.0,105600.0,3.29746193]
[1748999546989,0.00020676,105610.0,105600.0,3.29618193]
[1748999550079,0.00020676,105610.0,105600.0,2.50804115]
[1748999550294,0.00020676,105610.0,105600.0,3.29618193]
[1748999555850,0.00020676,105610.0,105600.0,2.50804115]
[1748999556049,0.00020676,105610.0,105600.0,3.29618193]
[1748999557297,0.00020676,105610.0,105600.0,3.29458193]
[1748999558196,0.00020676,105610.0,105600.0,3.29450193]
[1748999565503,0.00020676,105610.0,105600.0,2.50636115]
[1748999565719,0.00020676,105610.0,105600.0,3.29450193]
[1748999568116,0.00020676,105610.0,105600.0,3.29378193]
[1748999575012,0.00020676,105610.0,105600.0,2.99450193]
[1748999575255,0.00020676,105610.0,105600.0,3.29306193]
[1748999582373,0.00020676,105610.0,105600.0,1.6741003]
[1748999582603,0.03080676,105610.0,105600.0,1.27574044]
[1748999582826,0.03080676,105610.0,105600.0,1.57462044]
[1748999583043,0.03080676,105610.0,105600.0,1.96869083]
[1748999583262,0.03080676,105610.0,105600.0,1.57462044]
[1748999583700,0.03080676,105610.0,105600.0,1.5445343]
[1748999585283,0.03080676,105610.0,105600.0,1.1514543]
[1748999585496,0.03080676,105610.0,105600.0,1.2456543]
[1748999585709,0.03080676,105610.0,105600.0,1.4992143]
[1748999585972,0.03080676,105610.0,105600.0,1.5442143]
[1748999586409,0.03080676,105610.0,105600.0,1.2456543]
[1748999586633,0.03080676,105610.0,105600.0,1.5441743]
[1748999587138,0.03080676,105610.0,105600.0,1.1514543]
[1748999587351,0.03080676,105610.0,105600.0,0.9056943]
[1748999587798,0.03080676,105610.0,105600.0,1.5443343]
[1748999590086,0.03080676,105610.0,105600.0,1.5440543]
[1748999596875,0.03080676,105610.0,105600.0,1.2040543]
[1748999598268,0.03080676,105610.0,105600.0,1.2056543]
[1748999603720,0.03080676,105610.0,105600.0,0.9056943]
[1748999603937,0.03080676,105610.0,105600.0,1.2056943]
[1748999605728,0.03080676,105610.0,105600.0,1.2056543]
[1748999618080,0.00020676,105610.0,105600.0,1.2056543]
[1748999623683,0.00020676,105610.0,105600.0,1.2046143]
[1748999631875,0.00020676,105610.0,105600.0,0.8114943]
[1748999632095,0.03180676,105610.0,105600.0,0.2488543]
[1748999632308,0.06898744,105610.0,105600.0,0.5884943]
[1748999632545,0.06898744,105610.0,105600.0,0.79076]
[1748999632762,0.06898744,105610.0,105600.0,0.64076]
[1748999632975,0.06898744,105610.0,105600.0,0.34264]
[1748999633200,0.06898744,105610.0,105600.0,0.64072]
[1748999633421,0.06898744,105610.0,105600.0,0.63872]
[1748999633651,0.06998744,105610.0,105600.0,0.63772]
[1748999633862,0.07298744,105610.0,105600.0,0.63772]
[1748999634088,0.07198744,105610.0,105600.0,0.63772]
[1748999634332,0.10203889,105610.0,105600.0,0.6376]
[1748999634564,0.11978454,105610.0,105600.0,0.6376]
[1748999634801,0.10203889,105610.0,105600.0,0.6376]
[1748999635444,0.11978454,105610.0,105600.0,0.6376]
[1748999635674,0.13753019,105610.0,105600.0,0.6376]
[1748999635876,0.11978454,105610.0,105600.0,0.6376]
[1748999636080,0.11978454,105610.0,105600.0,0.33964]
[1748999636300,0.11978454,105610.0,105600.0,0.63848]
[1748999637147,0.11978454,105610.0,105600.0,0.24524]
[1748999637365,0.08260386,105610.0,105600.0,0.63844]
[1748999637988,0.10034951,105610.0,105600.0,0.63844]
[1748999638446,0.08260386,105610.0,105600.0,0.63844]
[1748999640958,0.10034893,105610.0,105600.0,0.63844]
[1748999641160,0.10034889,105610.0,105600.0,0.63844]
[1748999641380,0.10034893,105610.0,105600.0,0.63844]
[1748999641602,0.08260386,105610.0,105600.0,0.63844]
[1748999642066,0.10034886,105610.0,105600.0,0.63844]
[1748999642330,0.42260386,105610.0,105600.0,0.63844]
[1748999642764,0.44034886,105610.0,105600.0,0.63868]
[1748999642973,0.44034886,105610.0,105600.0,0.7345343]
[1748999643200,0.39100386,105610.0,105600.0,0.7345343]
[1748999643447,0.36295241,105610.0,105600.0,0.7345343]
[1748999646354,0.36295241,105610.0,105600.0,0.7504343]
[1748999647053,0.39189776,105610.0,105600.0,0.7504343]
[1748999649862,0.39189776,105610.0,105600.0,0.4355343]
[1748999650106,0.42339776,105610.0,105600.0,0.7338143]
[1748999652366,0.42339776,105610.0,105600.0,0.4355343]
[1748999652576,0.42339776,105610.0,105600.0,0.7336143]
[1748999655659,0.39189776,105610.0,105600.0,0.7336143]
[1748999659466,0.36295241,105610.0,105600.0,0.7336143]
[1748999661055,0.36295241,105610.0,105600.0,0.7492143]
[1748999661492,0.39174952,105610.0,105600.0,0.7492143]
[1748999661916,0.39174952,105610.0,105600.0,0.7336143]
[1748999662840,0.39174952,105610.0,105600.0,0.7487143]
[1748999664902,0.39174952,105610.0,105600.0,1.0212343]
[1748999667320,0.39174952,105610.0,105600.0,1.0199943]
[1748999667580,0.39174952,105610.0,105600.0,1.0360943]
[1748999669317,0.36295241,105610.0,105600.0,1.0810943]
[1748999669549,0.02295241,105610.0,105600.0,1.0810943]
[1748999669999,0.02295241,105610.0,105600.0,1.0356943]
[1748999683681,0.02295241,105610.0,105600.0,1.0806943]
[1748999688410,0.02295241,105610.0,105600.0,0.8354543]
[1748999688641,0.02295241,105610.0,105600.0,1.0793943]
[1748999697125,0.02295241,105610.0,105600.0,0.7826743]
[1748999697346,0.02295241,105610.0,105600.0,1.0782343]
[1748999702021,0.02295241,105610.0,105600.0,1.0621343]
[1748999702452,0.02295241,105610.0,105600.0,1.0777343]
[1748999707607,0.02295241,105610.0,105600.0,1.0621343]
[1748999707831,0.02295241,105610.0,105600.0,0.6123143]
[1748999708068,0.05525241,105610.0,105600.0,1.0000743]
[1748999711407,0.05525241,105610.0,105600.0,0.6123143]
[1748999711627,0.05525241,105610.0,105600.0,1.0000343]
[1748999713403,0.05525241,105610.0,105600.0,0.6123143]
[1748999713633,0.05525241,105610.0,105600.0,1.0000343]
[1748999714916,0.05525241,105610.0,105600.0,1.0000743]
[1748999716734,0.43655187,105610.0,105600.0,1.0000343]
[1748999717159,0.43655187,105610.0,105600.0,0.7045143]
[1748999717367,0.43655187,105610.0,105600.0,1.0000343]
[1748999717579,0.43655187,105610.0,105600.0,0.7045143]
[1748999717792,0.43655187,105610.0,105600.0,1.0000343]
[1748999718000,0.43655187,105610.0,105600.0,0.7045543]
[1748999718237,0.43655187,105610.0,105600.0,1.0001143]
[1748999718960,0.45074076,105610.0,105590.0,0.27252]
[1748999719186,0.09299558,105610.0,105600.0,0.63304]
[1748999719412,0.11074115,105610.0,105600.0,0.63304]
[1748999719649,0.14214118,105610.0,105600.0,0.63304]
[1748999719881,0.13914119,105610.0,105600.0,0.63304]
[1748999720110,0.13814119,105610.0,105600.0,0.63304]
[1748999720561,0.13914119,105610.0,105600.0,0.63304]
[1748999721011,0.15588716,105610.0,105600.0,0.63304]
[1748999721231,0.15788716,105610.0,105600.0,0.63304]
[1748999721662,0.17563313,105610.0,105600.0,0.63304]
[1748999721891,0.15688716,105610.0,105600.0,0.63304]
[1748999722570,0.1185877,105610.0,105600.0,0.63304]
[1748999723277,0.13633364,105610.0,105600.0,0.63304]
[1748999723500,0.1185877,105610.0,105600.0,0.63304]
[1748999725038,0.13633327,105610.0,105600.0,0.63304]
[1748999725466,0.1185877,105610.0,105600.0,0.63304]
[1748999725677,0.16181833,105610.0,105600.0,0.63304]
[1748999726788,0.1795639,105610.0,105600.0,0.63304]
[1748999727018,0.16181833,105610.0,105600.0,0.63304]
[1748999727669,0.1795639,105610.0,105600.0,0.63304]
[1748999727883,0.16181833,105610.0,105600.0,0.63304]
[1748999728095,0.1795639,105610.0,105600.0,0.63304]
[1748999728301,0.16181833,105610.0,105600.0,0.63304]
[1748999732243,0.1185877,105610.0,105600.0,0.63304]
[1748999732462,0.13633327,105610.0,105600.0,0.63304]
[1748999732896,0.1185877,105610.0,105600.0,0.63304]
[1748999733330,0.4585877,105610.0,105600.0,0.63308]
[1748999733553,0.47312855,105610.0,105600.0,0.63308]
[1748999734448,0.49087335,105610.0,105600.0,0.63308]
[1748999734669,0.52626448,105610.0,105600.0,0.33752]
[1748999734891,0.52626448,105610.0,105600.0,0.63308]
[1748999735573,0.54400939,105610.0,105600.0,0.63308]
[1748999735821,0.52626448,105610.0,105600.0,0.63308]
[1748999737135,0.54400942,105610.0,105600.0,0.63308]
[1748999737353,0.52626448,105610.0,105600.0,0.63308]
[1748999737567,0.4271877,105610.0,105600.0,0.63308]
[1748999737995,0.4582877,105610.0,105600.0,0.63304]
[1748999738864,0.47603246,105610.0,105600.0,0.63304]
[1748999739135,0.4582877,105610.0,105600.0,0.633]
[1748999739350,0.50816507,105610.0,105600.0,0.633]
[1748999739770,0.52591005,105610.0,105600.0,0.633]
[1748999739981,0.52591018,105610.0,105600.0,0.633]
[1748999740396,0.54365533,105610.0,105600.0,0.633]
[1748999740603,0.52591018,105610.0,105600.0,0.633]
[1748999740820,0.52591018,105610.0,105600.0,0.33748]
[1748999741043,0.52591018,105610.0,105600.0,0.633]
[1748999741044,0.54045103,105610.0,105600.0,0.633]
[1748999741464,0.55819701,105610.0,105600.0,0.633]
[1748999741904,0.57594299,105610.0,105600.0,0.633]
[1748999742733,0.55819701,105610.0,105600.0,0.633]
[1748999743602,0.56319701,105610.0,105600.0,0.33748]
[1748999743813,0.56319701,105610.0,105600.0,0.633]
[1748999745553,0.58094331,105610.0,105600.0,0.633]
[1748999745780,0.56319701,105610.0,105600.0,0.633]
[1748999746452,0.58094337,105610.0,105600.0,0.633]
[1748999746661,0.56319701,105610.0,105600.0,0.633]
[1748999748835,0.58094376,105610.0,105600.0,0.633]
[1748999749046,0.58094376,105610.0,105600.0,0.63607875]
[1748999749047,0.56319701,105610.0,105600.0,0.63607875]
[1748999749234,0.56319701,105610.0,105600.0,0.633]
[1748999749480,0.56319701,105610.0,105600.0,0.24835877]
[1748999749693,0.56319701,105610.0,105600.0,0.633]
[1748999751817,0.56319701,105610.0,105600.0,0.24528]
[1748999752043,0.56319701,105610.0,105600.0,0.633]
[1748999752908,0.56319701,105610.0,105600.0,0.24528]
[1748999753144,0.39074085,105600.0,105590.0,0.24532]
[1748999753383,0.48772434,105600.0,105590.0,0.63304]
[1748999753602,0.48772452,105600.0,105590.0,0.63304]
[1748999753812,0.46997649,105600.0,105590.0,0.63304]
[1748999754505,0.46997649,105600.0,105590.0,0.33752]
[1748999754724,0.46997649,105600.0,105590.0,0.633]
[1748999754927,0.47497649,105600.0,105590.0,0.633]
[1748999755556,0.47997649,105600.0,105590.0,0.33752]
[1748999755760,0.47997649,105600.0,105590.0,0.633]
[1748999756616,0.49772477,105600.0,105590.0,0.33752]
[1748999756838,0.0316,105590.0,105570.0,0.0316]
[1748999757089,0.09916185,105590.0,105570.0,0.1120543]
[1748999757310,0.43099223,105590.0,105570.0,0.0958543]
[1748999757514,0.43099223,105590.0,105560.0,0.031]
[1748999757515,0.45374177,105590.0,105560.0,0.031]
[1748999757726,0.43599223,105590.0,105560.0,0.1268543]
[1748999757942,0.43799223,105590.0,105570.0,0.29548]
[1748999758151,0.45253308,105590.0,105580.0,0.29548]
[1748999758372,0.4702829,105590.0,105580.0,0.29548]
[1748999758581,0.45453308,105590.0,105580.0,0.29548]
[1748999759007,0.45253308,105590.0,105580.0,0.29548]
[1748999759211,0.55211308,105590.0,105580.0,0.29548]
[1748999759417,0.45053308,105590.0,105580.0,0.29548]
[1748999759851,0.47128298,105590.0,105580.0,0.29548]
[1748999760063,0.45353308,105590.0,105580.0,0.00308089]
[1748999760274,0.45653308,105590.0,105580.0,0.29548]
[1748999760487,0.47428304,105590.0,105580.0,0.29548]
[1748999760693,0.45653308,105590.0,105580.0,0.29552]
[1748999760923,0.47428307,105590.0,105580.0,0.29552]
[1748999761160,0.01454085,105580.0,105560.0,0.1268543]
[1748999761371,0.11227368,105580.0,105570.0,0.29548]
[1748999761584,0.11227368,105580.0,105560.0,0.1268543]
[1748999761585,0.09452324,105580.0,105560.0,0.1268543]
[1748999761808,0.09452324,105580.0,105550.0,0.0322]
[1748999761809,0.19410324,105580.0,105550.0,0.0322]
[1748999762031,0.36974085,105570.0,105550.0,0.1280543]
[1748999762284,0.36974085,105570.0,105560.0,0.29548]
[1748999762285,0.43183839,105570.0,105560.0,0.29548]
[1748999762515,0.43183839,105570.0,105560.0,0.29856245]
[1748999762727,0.46499121,105570.0,105560.0,0.29548]
[1748999762941,0.41663839,105570.0,105560.0,0.29548]
[1748999763364,0.41668638,105570.0,105560.0,0.29548]
[1748999763837,0.43443893,105570.0,105560.0,0.29548]
[1748999764056,0.44858638,105570.0,105560.0,0.29860118]
[1748999764286,0.45358638,105570.0,105550.0,0.0322]
[1748999764506,0.47133933,105570.0,105560.0,0.29552]
[1748999764721,0.01454085,105560.0,105550.0,0.0161]
[1748999764980,0.05989949,105560.0,105550.0,0.0161]
[1748999765207,0.05989949,105560.0,105550.0,0.31162]
[1748999765428,0.05989949,105560.0,105550.0,0.64914]
[1748999765864,0.05989949,105560.0,105550.0,0.65014]
[1748999766093,0.05989949,105560.0,105550.0,0.65322161]
[1748999766321,0.01454085,105560.0,105550.0,0.66634]
[1748999766541,0.03234155,105570.0,105560.0,0.032]
[1748999766765,0.01458884,105570.0,105560.0,0.032]
[1748999766992,0.060533,105570.0,105560.0,0.032]
[1748999767218,0.07828537,105570.0,105560.0,0.032]
[1748999767431,0.07828537,105570.0,105560.0,0.03508082]
[1748999767647,0.07828537,105570.0,105560.0,0.032]
[1748999767862,0.060533,105570.0,105560.0,0.032]
[1748999768072,0.08028537,105570.0,105560.0,0.032]
[1748999768287,0.062533,105570.0,105560.0,0.032]
[1748999768747,0.01658884,105570.0,105560.0,0.032]
[1748999769203,0.03434121,105570.0,105560.0,0.032]
[1748999769417,0.01658884,105570.0,105560.0,0.032]
[1748999769635,0.03434121,105570.0,105560.0,0.032]
[1748999769858,0.01658884,105570.0,105560.0,0.0350806]
[1748999770153,0.05774772,105570.0,105560.0,0.032]
[1748999770586,0.05774772,105570.0,105560.0,0.03508035]
[1748999770801,0.05774772,105570.0,105560.0,0.032]
[1748999771014,0.05774772,105570.0,105560.0,0.03508038]
[1748999771220,0.05774772,105570.0,105560.0,0.032]
[1748999772084,0.07550009,105570.0,105560.0,0.032]
[1748999772298,0.05774772,105570.0,105560.0,0.032]
[1748999772511,0.05774772,105570.0,105560.0,0.0164]
[1748999772962,0.07550009,105570.0,105560.0,0.0164]
[1748999773172,0.41550009,105570.0,105560.0,0.0317]
[1748999773380,0.39774772,105570.0,105560.0,0.0317]
[1748999773804,0.41550001,105570.0,105560.0,0.0317]
[1748999774016,0.39774772,105570.0,105560.0,0.0317]
[1748999774226,0.41550001,105570.0,105560.0,0.0317]
[1748999774634,0.39774772,105570.0,105560.0,0.0317]
[1748999775073,0.35658884,105570.0,105560.0,0.0317]
[1748999775304,0.00204799,105570.0,105560.0,0.1275543]
[1748999776181,0.00204799,105570.0,105560.0,0.12992262]
[1748999776443,0.00204799,105570.0,105560.0,0.51760262]
[1748999776700,0.00204799,105570.0,105560.0,0.5152343]
[1748999777193,0.00104799,105570.0,105560.0,0.5152343]
[1748999777730,0.00104799,105570.0,105560.0,0.5162343]
[1748999777913,4.799e-05,105570.0,105560.0,0.5162343]
[1748999780692,4.799e-05,105570.0,105560.0,0.5161943]
[1748999781384,4.799e-05,105570.0,105560.0,0.5150743]
[1748999782247,4.799e-05,105570.0,105560.0,0.1274343]
[1748999782450,4.799e-05,105570.0,105560.0,0.5150743]
[1748999791216,4.799e-05,105570.0,105560.0,0.7877143]
[1748999794842,4.799e-05,105570.0,105560.0,0.7875543]
[1748999805766,4.799e-05,105570.0,105560.0,0.79699849]
[1748999806241,4.799e-05,105570.0,105560.0,0.84199849]
[1748999813439,4.799e-05,105570.0,105560.0,0.84187849]
[1748999818080,4.799e-05,105570.0,105560.0,1.24187849]
[1748999819192,4.799e-05,105570.0,105560.0,1.23664762]
[1748999819410,4.799e-05,105570.0,105560.0,1.57664762]
[1748999819854,4.799e-05,105570.0,105560.0,1.97664762]
[1748999822426,4.799e-05,105570.0,105560.0,1.58187849]
[1748999822657,4.799e-05,105570.0,105560.0,1.24159849]
[1748999822899,4.799e-05,105570.0,105560.0,1.18183849]
[1748999823140,4.799e-05,105570.0,105560.0,0.84183849]
[1748999824266,4.799e-05,105570.0,105560.0,0.54659849]
[1748999824751,4.799e-05,105570.0,105560.0,0.84183849]
[1748999824965,4.799e-05,105570.0,105560.0,0.8323943]
[1748999826722,4.799e-05,105570.0,105560.0,0.5371543]
[1748999826925,4.799e-05,105570.0,105560.0,0.8018143]
[1748999827220,4.799e-05,105570.0,105560.0,0.1418543]
[1748999827506,0.03214799,105570.0,105560.0,1.0020143]
[1748999828179,0.03214799,105570.0,105560.0,1.0010143]
[1748999828601,0.03314799,105570.0,105560.0,1.0010143]
[1748999829890,0.03314799,105570.0,105560.0,0.7057743]
[1748999830108,0.03414799,105570.0,105560.0,1.0010143]
[1748999836714,0.00204799,105570.0,105560.0,1.0010143]
[1748999837366,0.00204799,105570.0,105560.0,1.0315143]
[1748999838245,0.00104799,105570.0,105560.0,1.0315143]
[1748999838683,0.00104799,105570.0,105560.0,1.0325143]
[1748999839364,4.799e-05,105570.0,105560.0,1.0775143]
[1748999847422,0.41537478,105600.0,105570.0,0.045]
[1748999847703,0.41542282,105600.0,105580.0,0.4830543]
[1748999847923,0.39922282,105600.0,105580.0,0.4830543]
[1748999848135,0.0326,105590.0,105580.0,0.4830543]
[1748999848365,0.0165,105590.0,105580.0,0.4830543]
[1748999848580,0.41602282,105600.0,105580.0,0.4830543]
[1748999848811,0.41702282,105600.0,105580.0,0.4830543]
[1748999849529,0.41802282,105600.0,105580.0,0.4830543]
[1748999849752,0.41702282,105600.0,105580.0,0.4830543]
[1748999849972,0.41902282,105600.0,105580.0,0.4830543]
[1748999850229,0.0326,105590.0,105580.0,0.4830543]
[1748999850441,0.0346,105590.0,105580.0,0.4830143]
[1748999851100,0.0326,105590.0,105580.0,0.4830143]
[1748999852198,0.0346,105590.0,105580.0,0.4830143]
[1748999852413,0.0366,105590.0,105580.0,0.4830143]
[1748999856741,0.0366,105590.0,105580.0,0.7283343]
[1748999861617,0.0366,105590.0,105580.0,0.6137743]
[1748999861837,0.0366,105590.0,105580.0,1.0008543]
[1748999862899,0.0366,105590.0,105580.0,0.7057343]
[1748999863118,0.0366,105590.0,105580.0,0.905]
[1748999866161,0.0366,105590.0,105580.0,0.51792]
[1748999866401,0.0366,105590.0,105580.0,0.905]
[1748999868384,0.405027,105590.0,105580.0,0.905]
[1748999869918,0.405027,105590.0,105580.0,0.60988]
[1748999870124,0.405027,105590.0,105580.0,0.905]
[1748999870357,0.41956785,105590.0,105580.0,0.90496]
[1748999870821,0.41956785,105590.0,105580.0,0.60988]
[1748999870822,0.42456785,105590.0,105580.0,0.60988]
[1748999871055,0.44231786,105590.0,105580.0,0.905]
[1748999871275,0.42456785,105590.0,105580.0,0.905]
[1748999871492,0.49005859,105590.0,105580.0,0.905]
[1748999871714,0.57789002,105590.0,105580.0,0.905]
[1748999871929,0.49464868,105590.0,105580.0,0.905]
[1748999872138,0.56014995,105590.0,105580.0,0.905]
[1748999873021,0.50781984,105590.0,105580.0,0.905]
[1748999873209,0.49006912,105590.0,105580.0,0.905]
[1748999874554,0.42456785,105590.0,105580.0,0.905]
[1748999874772,0.44231831,105590.0,105580.0,0.905]
[1748999874984,0.42456785,105590.0,105580.0,0.905]
[1748999875204,0.49144695,105590.0,105580.0,0.905]
[1748999875413,0.55693984,105590.0,105580.0,0.905]
[1748999875624,0.49144695,105590.0,105580.0,0.905]
[1748999875848,0.5569268,105590.0,105580.0,0.905]
[1748999876283,0.50919746,105590.0,105580.0,0.905]
[1748999876494,0.5569268,105590.0,105580.0,0.51792]
[1748999876711,0.5569268,105590.0,105580.0,0.90496]
[1748999876937,0.49144695,105590.0,105580.0,0.90496]
[1748999877154,0.55692505,105590.0,105580.0,0.90496]
[1748999877366,0.57467572,105590.0,105580.0,0.90496]
[1748999877582,0.55692505,105590.0,105580.0,0.90496]
[1748999877794,0.65277935,105590.0,105580.0,0.905]
[1748999878249,0.67053026,105590.0,105580.0,0.905]
[1748999878454,0.65277935,105590.0,105580.0,0.905]
[1748999878674,0.67053036,105590.0,105580.0,0.905]
[1748999878887,0.67053047,105590.0,105580.0,0.905]
[1748999879097,0.65277935,105590.0,105580.0,0.905]
[1748999879328,0.67053047,105590.0,105580.0,0.905]
[1748999879561,0.75235935,105590.0,105580.0,0.905]
[1748999879774,0.75234747,105590.0,105580.0,0.905]
[1748999880219,0.77009861,105590.0,105580.0,0.905]
[1748999880429,0.7700986,105590.0,105580.0,0.905]
[1748999880638,0.75234747,105590.0,105580.0,0.60988]
[1748999880896,0.01954085,105580.0,105550.0,0.031]
[1748999881105,0.0315,105570.0,105560.0,0.38704]
[1748999881938,0.0162,105570.0,105560.0,0.38704]
[1748999884256,0.03074085,105570.0,105550.0,0.1268543]
[1748999884466,0.03074085,105570.0,105560.0,0.38704]
[1748999884696,0.05917485,105570.0,105550.0,0.1268543]
[1748999884919,0.47069522,105570.0,105540.0,0.0308]
[1748999885136,0.47069522,105570.0,105560.0,0.09196]
[1748999885349,0.48844865,105570.0,105560.0,0.09196]
[1748999885567,0.47069522,105570.0,105560.0,0.09196]
[1748999885780,0.47069522,105570.0,105560.0,0.09495117]
[1748999886029,0.47069522,105570.0,105560.0,0.09495114]
[1748999886243,0.47069522,105570.0,105560.0,0.09196]
[1748999886450,0.47369522,105570.0,105560.0,0.09196]
[1748999886868,0.47669522,105570.0,105560.0,0.09495118]
[1748999887087,0.47669522,105570.0,105560.0,0.09196]
[1748999887506,0.47669522,105570.0,105560.0,0.38704]
[1748999887750,0.4944489,105570.0,105550.0,0.24536]
[1748999887973,0.38714085,105560.0,105550.0,0.24536]
[1748999888192,0.0163,105550.0,105520.0,0.04730258]
[1748999888415,0.0163,105550.0,105530.0,0.387]
[1748999888416,0.0327,105550.0,105530.0,0.387]
[1748999888708,0.05045667,105550.0,105530.0,0.387]